bitfinex-derivatives/quotes_BNBF0:USTF0_20250424
["timestamp","ask_amount","ask_price","bid_price","bid_amount"]
[1745535634860,1.27273016,600.91,598.96,0.30633584]
[1745535635164,1.27273016,600.91,598.97,0.30633584]
[1745535635468,1.27273016,600.91,598.98,0.30633584]
[1745535635765,0.29018862,600.9,598.99,0.30633584]
[1745535635965,0.29018862,600.9,598.94,0.29018862]
[1745535636162,0.29018862,600.9,598.95,0.30633584]
[1745535636360,0.29018862,600.9,598.96,0.30632547]
[1745535636572,0.29018862,600.9,598.95,0.30632547]
[1745535636762,1.27273016,600.78,598.98,1.05922751]
[1745535637063,1.27273016,600.78,598.99,0.30632547]
[1745535638768,0.29018499,600.77,599.01,1.05922751]
[1745535638967,0.29018499,600.77,599.02,0.30632547]
[1745535639468,0.29018499,600.77,599.01,1.05922751]
[1745535639768,0.29018499,600.77,599.02,0.30631752]
[1745535641171,0.29018499,600.77,599.02,1.36554503]
[1745535641368,0.29018499,600.77,599.03,0.30631752]
[1745535643571,1.27273016,600.82,599.03,0.30631752]
[1745535644272,1.27273016,600.82,599.02,1.05922751]
[1745535644473,1.27273016,600.82,599.03,0.30632283]
[1745535644668,1.27273016,600.82,599.02,0.30632283]
[1745535644972,0.29017531,600.81,599.02,0.30632283]
[1745535646574,1.27273016,600.82,599.02,0.30632283]
[1745535647174,1.27273016,600.6,599.06,1.05922751]
[1745535647571,1.27273016,600.6,599.07,0.30636476]
[1745535647770,0.29022371,600.59,599.07,0.30636476]
[1745535649576,1.27273016,600.6,599.07,0.30636476]
[1745535650077,1.27273016,600.55,599.07,0.30636476]
[1745535650275,1.27273016,600.55,599.03,1.05922751]
[1745535650873,0.29025276,600.54,599.03,1.05922751]
[1745535652578,1.27273016,600.55,599.03,1.05922751]
[1745535653875,0.29025276,600.54,599.03,1.05922751]
[1745535654679,0.29025276,600.54,598.81,0.29025276]
[1745535657287,0.29025276,600.54,598.82,0.30642991]
[1745535658585,1.27273016,601.54,598.82,0.30642991]
[1745535658782,1.27273016,601.54,598.83,0.30643411]
[1745535659086,1.27273016,601.54,598.84,0.30643411]
[1745535659286,1.27273016,601.54,598.37,0.30643411]
[1745535659486,1.27273016,601.54,598.38,0.30643411]
[1745535659684,1.27273016,601.54,598.39,0.30643411]
[1745535659881,0.29022855,601.53,598.4,0.30643411]
[1745535660085,0.29022855,601.53,598.41,0.30643411]
[1745535660287,0.29022855,601.53,598.42,0.30643411]
[1745535660483,0.29022855,601.53,598.43,0.30643411]
[1745535660785,1.27273016,600.88,598.59,1.05922751]
[1745535660982,1.27273016,600.88,598.6,0.30643411]
[1745535661284,1.27273016,600.88,598.61,0.30643411]
[1745535661484,1.27273016,600.88,598.62,0.30643411]
[1745535661689,1.27273016,600.88,598.63,0.30643411]
[1745535661890,1.27273016,600.88,598.6,0.30643411]
[1745535662185,1.27273016,600.88,598.61,0.30643411]
[1745535662490,1.27273016,600.88,598.62,0.30643411]
[1745535662686,1.27273016,600.88,598.6,0.30643411]
[1745535662983,0.29027092,600.87,598.61,0.30641452]
[1745535663186,0.29027092,600.87,598.62,0.30641452]
[1745535663385,0.29027092,600.87,598.6,0.30641452]
[1745535663584,0.29027092,600.87,598.61,0.30641452]
[1745535663784,0.29027092,600.87,598.62,0.30641452]
[1745535663985,1.27273016,600.67,598.65,1.05922751]
[1745535664185,1.27273016,600.67,598.66,0.30641452]
[1745535664589,1.27273016,600.67,598.67,0.30641136]
[1745535664782,1.27273016,600.67,598.66,0.30641136]
[1745535664986,1.27273016,600.67,598.67,0.30641136]
[1745535665186,1.27273016,600.67,598.66,0.30641136]
[1745535665892,0.29028424,600.66,598.66,0.30641136]
[1745535666086,0.29028424,600.66,598.65,1.05922751]
[1745535666285,0.29028424,600.66,598.66,0.30641331]
[1745535666492,0.29028424,600.66,598.67,1.05922751]
[1745535666691,0.29028424,600.66,598.68,0.30641331]
[1745535667688,1.27273016,600.79,598.67,1.05922751]
[1745535667886,1.27273016,600.79,598.68,0.30641387]
[1745535668793,0.29026729,600.78,598.68,0.30641387]
[1745535669294,0.29026729,600.78,598.66,1.05922751]
[1745535669494,0.29026729,600.78,598.67,0.30641402]
[1745535671197,1.27273016,600.76,598.67,1.36564153]
[1745535671495,1.27273016,600.76,598.68,0.30641402]
[1745535672396,1.27273016,600.76,598.69,0.30641402]
[1745535672598,1.27273016,600.76,598.7,0.30641402]
[1745535672895,1.27273016,600.76,598.71,0.30641402]
[1745535673095,1.27273016,600.76,598.72,0.30641402]
[1745535673296,1.27273016,600.76,598.73,0.30641402]
[1745535673498,1.27273016,600.76,598.67,1.05922751]
[1745535673499,1.27273016,600.76,598.74,0.30641402]
[1745535673693,1.27273016,600.76,598.75,0.30641402]
[1745535673897,1.27273016,600.76,598.67,1.05922751]
[1745535674097,1.27273016,600.6,598.76,1.05922751]
[1745535674297,1.27273016,600.6,598.77,0.30641519]
[1745535674898,0.29027939,600.59,598.77,0.30641519]
[1745535675494,0.29027939,600.59,598.76,1.05922751]
[1745535675699,0.29027939,600.59,598.77,0.30641738]
[1745535676601,1.27273016,600.66,598.77,0.30641738]
[1745535676800,1.27273016,600.66,598.78,0.30641738]
[1745535676996,1.27273016,600.66,598.75,0.30641738]
[1745535677898,0.29027455,600.65,598.75,0.30641738]
[1745535678604,0.29027455,600.65,598.74,1.05922751]
[1745535678797,0.29027455,600.65,598.75,0.30641733]
[1745535679806,1.27273016,600.59,598.79,1.05922751]
[1745535680105,1.27273016,600.59,598.8,0.30641733]
[1745535680803,0.29027697,600.58,598.8,0.30641733]
[1745535682502,1.27273016,600.53,598.85,1.05922751]
[1745535682806,0.29027697,600.52,598.86,0.30641733]
[1745535683506,0.29027697,600.52,598.87,0.30641706]
[1745535683706,0.29027697,600.52,598.86,0.30641706]
[1745535684007,0.29027697,600.52,598.87,0.30641706]
[1745535684205,0.29027697,600.52,598.86,0.30641706]
[1745535684410,0.29027697,600.52,598.87,0.30641706]
[1745535684610,0.29027697,600.52,598.86,0.30641706]
[1745535684805,0.29027697,600.52,598.87,0.30641706]
[1745535685005,0.29027697,600.52,598.88,0.30641706]
[1745535685311,0.29027697,600.52,598.89,0.30641706]
[1745535685606,1.27273016,600.53,598.9,0.30641706]
[1745535685810,1.27273016,600.53,598.86,0.30641706]
[1745535686110,1.27273016,600.53,598.87,0.30641706]
[1745535686311,1.27273016,600.53,598.86,0.30641706]
[1745535686512,1.27273016,600.54,598.87,1.36564457]
[1745535686811,1.27273016,600.54,598.88,0.30641706]
[1745535687011,0.29027697,600.52,598.88,0.30641706]
[1745535688614,1.27273016,600.54,598.88,0.30641706]
[1745535690011,0.29027334,600.53,598.88,0.30641706]
[1745535691016,0.29027334,600.53,598.87,1.05922751]
[1745535691215,0.29027334,600.53,598.88,0.30641546]
[1745535691416,1.27273016,600.46,598.93,1.05922751]
[1745535691611,1.27273016,600.46,598.94,0.30641546]
[1745535693719,1.27273016,600.36,598.98,1.05922751]
[1745535693912,1.27273016,600.36,598.99,0.30641546]
[1745535694218,1.27273016,600.36,598.98,1.05922751]
[1745535694521,1.27273016,600.36,598.99,0.30641377]
[1745535695720,1.27273016,600.36,598.98,1.05922751]
[1745535695921,1.27273016,600.36,598.99,0.30641412]
[1745535696120,0.29028182,600.43,598.99,0.30641412]
[1745535696316,0.29028182,600.43,598.88,0.30641412]
[1745535696516,0.29028182,600.43,598.89,0.30641412]
[1745535696721,0.29028182,600.43,598.9,0.30641412]
[1745535697021,0.29028182,600.43,598.91,0.30641412]
[1745535697214,0.29028182,600.43,598.92,0.30641412]
[1745535697417,0.29028182,600.43,598.88,0.30641412]
[1745535697617,1.27273016,600.6,598.89,0.30641412]
[1745535697820,1.27273016,600.6,598.88,0.30641412]
[1745535698018,1.27273016,600.6,598.89,0.30641412]
[1745535698225,1.27273016,600.6,598.88,0.30641412]
[1745535698723,1.27273016,600.6,598.88,1.36564163]
[1745535698919,0.29026608,600.59,598.88,1.05922751]
[1745535699119,0.29026608,600.59,598.89,0.30641733]
[1745535700524,0.29026608,600.59,598.88,1.05922751]
[1745535700724,1.27273016,600.6,598.89,0.30641684]
[1745535701821,1.27273016,600.58,598.89,0.30641684]
[1745535703824,1.27273016,600.58,598.9,0.30641715]
[1745535704018,1.27273016,600.58,598.89,0.30641715]
[1745535704526,1.27273016,600.59,598.89,0.30641715]
[1745535704726,1.27273016,600.59,598.88,0.30641715]
[1745535704924,0.29026729,600.57,598.89,0.30641715]
[1745535705124,0.29026729,600.57,598.9,0.30641715]
[1745535705420,0.29026729,600.57,598.91,0.30641715]
[1745535705624,0.29026729,600.57,598.88,0.30641715]
[1745535706625,1.27273016,600.59,598.88,0.30641715]
[1745535706824,1.27273016,600.59,598.87,1.05922751]
[1745535707125,1.27273016,600.59,598.88,0.30641563]
[1745535707825,0.29029634,600.58,598.88,0.30641563]
[1745535708026,1.27273016,600.38,598.97,1.05922751]
[1745535710925,0.29030966,600.37,598.97,1.05922751]
[1745535711425,0.29030966,600.37,598.84,1.343]
[1745535712626,1.27273016,600.87,598.84,1.343]
[1745535713525,1.27273016,600.87,598.85,1.595]
[1745535713926,0.29026608,600.86,598.85,1.595]
[1745535715629,1.27273016,600.91,598.85,1.595]
[1745535716827,0.29026002,600.9,598.85,1.595]
[1745535718530,0.29026002,600.9,598.86,0.30646721]
[1745535718724,1.27273016,600.91,598.86,0.30646721]
[1745535719932,0.29026002,600.9,598.86,0.30646721]
[1745535720930,0.29026002,600.9,598.85,1.595]
[1745535721130,0.29026002,600.9,598.86,0.30646735]
[1745535721634,0.29026002,600.9,598.87,1.261]
[1745535721831,0.29026002,600.9,598.88,0.30646735]
[1745535723036,1.27273016,600.48,598.88,0.30646735]
[1745535724635,1.27273016,600.48,598.89,1.247]
[1745535724835,0.29030966,600.47,598.9,0.30646735]
[1745535725636,0.29030966,600.47,598.91,0.30646669]
[1745535725835,0.29030966,600.47,598.92,0.30646669]
[1745535726034,0.29030966,600.47,598.89,1.247]
[1745535726035,0.29030966,600.47,598.93,0.30646669]
[1745535726232,0.29030966,600.47,598.89,1.247]
[1745535726436,0.29030966,600.47,598.9,0.30646653]
[1745535727636,1.27273016,600.54,598.9,0.30646653]
[1745535728237,1.27273016,600.56,598.9,0.30646653]
[1745535728838,0.29029755,600.55,598.9,0.30646653]
[1745535729134,0.29029755,600.55,598.91,0.30646673]
[1745535729339,0.29029755,600.55,598.89,1.247]
[1745535729639,0.29029755,600.55,598.9,0.30646663]
[1745535729839,0.29029755,600.55,598.89,1.247]
[1745535730040,0.29029755,600.55,598.9,0.30646578]
[1745535730240,0.29029755,600.55,598.91,0.30646578]
[1745535730439,0.29029755,600.55,598.9,0.30646578]
[1745535730641,2.16540896,600.88,598.89,1.247]
[1745535730642,1.27273016,600.58,598.91,0.30646578]
[1745535730842,0.29029755,600.54,598.92,0.30646578]
[1745535731136,0.29029755,600.54,598.93,0.30646578]
[1745535731342,0.29029755,600.54,598.9,0.30646578]
[1745535731543,0.29029755,600.54,598.89,1.247]
[1745535731837,0.29029755,600.54,598.9,1.37946735]
[1745535732042,0.29029755,600.54,598.91,0.30646735]
[1745535733346,1.56302771,600.54,598.91,0.30646735]
[1745535733644,1.27273016,600.54,598.91,0.30646735]
[1745535734746,1.27273016,600.54,598.9,1.073]
[1745535734943,0.29029877,600.53,598.91,0.30647223]
[1745535736648,1.27273016,600.54,598.91,0.30647223]
[1745535736848,1.27273016,600.51,598.91,0.30647223]
[1745535737946,0.2903024,600.5,598.92,0.30647187]
[1745535738148,0.2903024,600.5,598.93,0.30647187]
[1745535738345,0.2903024,600.5,598.91,0.30647187]
[1745535738551,0.2903024,600.5,598.92,0.30647187]
[1745535738853,0.2903024,600.5,598.93,0.30647187]
[1745535739049,0.2903024,600.5,598.91,0.30647187]
[1745535739451,0.2903024,600.5,598.9,1.073]
[1745535739651,1.27273016,600.51,598.91,0.30646763]
[1745535740446,1.27273016,600.51,598.9,1.073]
[1745535740850,0.2903024,600.5,598.9,1.073]
[1745535741954,1.27273016,600.4,598.9,1.073]
[1745535742848,0.29032541,600.39,598.9,1.073]
[1745535745749,1.27273016,600.52,598.9,1.073]
[1745535746854,0.29032056,600.51,598.9,1.073]
[1745535748149,0.29032056,600.51,598.9,2.618]
[1745535748654,1.27273016,600.52,598.9,2.618]
[1745535749954,0.29032056,600.51,598.9,2.618]
[1745535750255,0.29032056,600.51,598.9,4.122]
[1745535751250,1.56305072,600.51,598.9,4.122]
[1745535751656,1.27273016,600.51,598.9,4.122]
[1745535752855,0.29032177,600.5,598.9,4.122]
[1745535753854,0.29032177,600.5,598.9,5.616]
[1745535754654,1.27273016,600.58,598.9,5.616]
[1745535755857,0.2903133,600.57,598.9,5.616]
[1745535757057,1.27273016,600.56,598.9,5.616]
[1745535758853,0.29031572,600.55,598.9,5.616]
[1745535759954,1.27273016,600.51,598.9,5.616]
[1745535761855,0.29032177,600.5,598.9,5.616]
[1745535762160,1.27273016,600.44,598.9,5.616]
[1745535763862,0.29033994,600.43,598.9,5.616]
[1745535764865,1.27273016,600.42,598.9,5.616]
[1745535766965,0.29034236,600.41,598.9,5.616]
[1745535767865,1.27273016,600.4,598.9,5.616]
[1745535770665,1.27273016,600.35,598.9,5.616]
[1745535773867,1.27273016,600.3,598.9,5.616]
[1745535776969,0.29040051,600.29,598.9,5.616]
[1745535778676,1.27273016,600.89,598.9,5.616]
[1745535779678,1.27273016,600.82,598.9,5.616]
[1745535782480,1.27273016,600.83,598.9,5.616]
[1745535782879,0.29033631,600.82,598.9,5.616]
[1745535784680,1.27273016,600.83,598.9,5.616]
[1745535784980,0.29033631,600.81,598.9,5.616]
[1745535785579,1.27273016,600.44,598.9,5.616]
[1745535788382,1.27273016,600.4,598.9,5.616]
[1745535790885,1.27273016,600.47,598.9,5.616]
[1745535793590,1.27273016,600.5,598.9,5.616]
[1745535795291,0.2903351,600.49,598.9,5.616]
[1745535796390,1.27273016,600.46,598.9,5.616]
[1745535796991,0.29033994,600.45,598.9,5.616]
[1745535797986,0.29033994,600.45,598.9,4.071]
[1745535798188,0.29033994,600.45,598.53,0.29033994]
[1745535798387,0.29033994,600.45,598.54,0.30656485]
[1745535799093,1.27273016,600.39,598.54,0.30656485]
[1745535799894,1.27273016,600.39,598.43,0.30656485]
[1745535800092,1.27273016,600.39,598.44,0.30656485]
[1745535800286,1.27273016,600.39,598.43,0.30656485]
[1745535800992,0.29041142,600.38,598.44,0.29041142]
[1745535801193,0.29041142,600.38,598.45,0.30656485]
[1745535802690,1.27273016,600.4,598.45,0.30656485]
[1745535802893,1.27273016,600.4,598.41,0.30656485]
[1745535803896,0.29041748,600.39,598.42,0.29041748]
[1745535804100,0.29041748,600.39,598.43,0.30656485]
[1745535804803,1.27273016,600.31,598.43,0.30656485]
[1745535805098,1.27273016,600.31,598.44,0.30656899]
[1745535805296,1.27273016,600.31,598.45,0.30656899]
[1745535805496,1.27273016,600.31,598.46,0.30656899]
[1745535805698,1.27273016,600.31,598.43,0.30656899]
[1745535805901,1.27273016,600.31,598.44,0.59699495]
[1745535806202,0.29042353,600.3,598.45,0.30656899]
[1745535806597,0.29042353,600.3,598.44,0.29042596]
[1745535806801,0.29042353,600.3,598.45,0.30655998]
[1745535806997,0.29042353,600.3,598.48,1.05922751]
[1745535807202,0.29042353,600.3,598.49,0.30655998]
[1745535808698,1.27273016,600.39,598.49,0.30655998]
[1745535808897,0.29040415,600.29,598.49,0.30655998]
[1745535809296,1.27273016,600.39,598.49,0.30655998]
[1745535809502,1.27273016,600.29,598.54,1.05922751]
[1745535809703,1.27273016,600.29,598.55,0.30655998]
[1745535809903,1.27273016,600.29,598.54,1.05922751]
[1745535810100,0.29043081,600.28,598.55,0.30658993]
[1745535811705,1.27273016,600.29,598.55,0.30658993]
[1745535812105,1.27273016,600.12,598.55,1.36581744]
[1745535812404,1.27273016,600.12,598.56,0.30658993]
[1745535813003,0.2904502,600.11,598.56,0.30658993]
[1745535814708,1.27273016,600.12,598.56,0.30658993]
[1745535815204,1.27273016,600.16,598.56,0.30658993]
[1745535815401,1.27273016,600.16,598.57,0.30658993]
[1745535815605,1.27273016,600.16,598.53,0.30658993]
[1745535815801,1.27273016,600.16,598.58,0.30658993]
[1745535816000,0.29043687,600.15,598.59,0.30658993]
[1745535816202,0.29043687,600.15,598.6,0.30658993]
[1745535816404,0.29043687,600.15,598.61,0.30658993]
[1745535816602,0.29043687,600.15,598.53,0.30658993]
[1745535816801,0.29043687,600.15,598.54,0.30658993]
[1745535817001,0.29043687,600.15,598.53,0.30658993]
[1745535817203,0.29043687,600.15,598.54,0.30658993]
[1745535817403,0.29043687,600.15,598.55,1.05922751]
[1745535817606,0.29043687,600.15,598.56,0.30658993]
[1745535817803,1.27273016,600.21,598.56,0.30658993]
[1745535818905,0.29042717,600.2,598.56,0.30658993]
[1745535820312,1.27273016,600.19,598.57,1.05922751]
[1745535820506,1.27273016,600.19,598.58,0.30658993]
[1745535822809,1.27273016,600.19,598.57,1.05922751]
[1745535823015,1.27273016,600.19,598.58,0.30654907]
[1745535824015,0.29041748,600.18,598.58,0.30654907]
[1745535824215,0.29041748,600.18,598.59,0.30654907]
[1745535824413,0.29041748,600.18,598.56,1.05922751]
[1745535824610,0.29041748,600.18,598.57,0.3065734]
[1745535825914,0.29041748,600.18,598.53,1.34964499]
[1745535826113,0.29041748,600.18,598.54,0.30657725]
[1745535826818,1.27273016,600.3,598.54,0.30657725]
[1745535827913,0.29041869,600.29,598.54,0.30657725]
[1745535828119,1.27273016,600.28,598.54,0.30657725]
[1745535828922,1.27273016,600.28,598.53,0.29041869]
[1745535829115,1.27273016,600.28,598.54,0.30657866]
[1745535829916,1.27273016,600.28,598.55,0.30657866]
[1745535830220,1.27273016,600.28,598.56,0.30657866]
[1745535830420,1.27273016,600.28,598.54,0.30657866]
[1745535830621,1.27273016,600.28,598.55,0.30658103]
[1745535830821,1.27273016,600.28,598.54,0.30658103]
[1745535831021,0.29044293,600.27,598.53,1.05922751]
[1745535831221,0.29044293,600.27,598.54,0.30661942]
[1745535831522,0.29044293,600.27,598.53,1.05922751]
[1745535832221,0.29044293,600.27,598.54,0.30662526]
[1745535832723,1.27273016,600.28,598.54,0.30662526]
[1745535833023,1.27273016,600.28,598.53,1.05922751]
[1745535833925,0.29044777,600.27,598.35,1.198]
[1745535834126,0.29044777,600.27,598.42,0.29044777]
[1745535834428,0.29044777,600.27,598.43,0.30662912]
[1745535834630,0.29044777,600.27,598.36,0.30662912]
[1745535834825,0.29044777,600.27,598.37,0.30662912]
[1745535835026,0.29044777,600.27,598.38,0.30662912]
[1745535835225,0.29044777,600.27,598.35,1.198]
[1745535835430,0.29044777,600.27,598.36,0.30662934]
[1745535835832,1.27273016,600.42,598.36,0.59708196]
[1745535836031,1.27273016,600.42,598.37,0.30662934]
[1745535836532,1.27273016,600.47,598.37,0.30662934]
[1745535836732,1.27273016,600.47,598.36,0.29045262]
[1745535836933,0.29045141,600.41,598.38,0.30662572]
[1745535837134,0.29045141,600.41,598.39,0.30662572]
[1745535837432,0.29045141,600.41,598.4,0.30662572]
[1745535837628,0.29045141,600.41,598.41,0.30662572]
[1745535837832,0.29045141,600.41,598.37,0.30662572]
[1745535838032,0.29045141,600.41,598.38,0.30662572]
[1745535838333,0.29045141,600.41,598.39,0.3066278]
[1745535838532,0.29045141,600.41,598.37,0.3066278]
[1745535841637,1.27273016,600.48,598.37,0.3066278]
[1745535841833,1.27273016,600.5,598.38,0.3066278]
[1745535842036,0.29044414,600.4,598.36,0.59707194]
[1745535842237,1.27273016,600.5,598.37,0.3066278]
[1745535842438,1.27273016,600.5,598.38,0.30662878]
[1745535842732,1.27273016,600.5,598.39,0.30662878]
[1745535842940,0.29044171,600.49,598.4,0.30662878]
[1745535843137,0.29044171,600.49,598.37,0.30662878]
[1745535843340,0.29044171,600.49,598.38,0.3066264]
[1745535843537,0.29044171,600.49,598.39,0.3066264]
[1745535843737,0.29044171,600.49,598.36,0.29044414]
[1745535843738,0.29044171,600.49,598.4,0.3066264]
[1745535844038,1.27273016,600.28,598.41,0.3066264]
[1745535844338,1.27273016,600.28,598.42,0.3066264]
[1745535844532,1.27273016,600.28,598.41,1.297]
[1745535844732,1.27273016,600.28,598.42,0.3066264]
[1745535845338,1.27273016,600.28,598.41,1.297]
[1745535845537,1.27273016,600.28,598.42,0.30662518]
[1745535845934,0.29046232,600.27,598.42,0.30662518]
[1745535846440,1.27273016,600.11,598.45,1.05922751]
[1745535846638,1.27273016,600.11,598.46,0.30662518]
[1745535846938,1.27273016,600.11,598.45,1.05922751]
[1745535847238,1.27273016,600.11,598.46,0.30661856]
[1745535848940,0.29047808,600.1,598.46,0.30661856]
[1745535849940,1.27273016,600.06,598.48,1.05922751]
[1745535850239,1.27273016,600.06,598.49,0.30661856]
[1745535851935,0.2904805,600.05,598.49,0.30661856]
[1745535853039,0.2904805,600.05,598.47,0.975]
[1745535853242,0.2904805,600.05,598.48,0.30662593]
[1745535853644,1.27273016,600.1,598.48,0.30662593]
[1745535854544,1.27273016,600.1,598.47,0.975]
[1745535854844,1.27273016,600.1,598.48,0.30662592]
[1745535855039,0.29047687,600.09,598.48,0.30662592]
[1745535856141,0.29047687,600.09,598.49,0.30662621]
[1745535856442,0.29047687,600.09,598.5,0.30662621]
[1745535856746,1.27273016,600.14,598.51,0.30662621]
[1745535857050,1.27273016,600.14,598.52,0.30662621]
[1745535857244,1.27273016,600.14,598.48,0.30662621]
[1745535857946,1.27273016,600.12,598.48,0.30662621]
[1745535858252,1.27273016,600.12,598.49,1.414]
[1745535858545,1.27273016,600.12,598.5,0.30662621]
[1745535859152,1.27273016,600.12,598.49,1.414]
[1745535859354,1.27273016,600.12,598.5,0.30661765]
[1745535860757,1.27273016,600.03,598.53,1.05922751]
[1745535860957,1.27273016,600.03,598.54,0.30661675]
[1745535863454,2.16540896,600.52,598.54,0.30661675]
[1745535863455,1.27273016,600.27,598.54,0.30661675]
[1745535863656,1.27273016,600.27,598.55,0.30661675]
[1745535863853,1.27273016,600.27,598.5,0.30661675]
[1745535864056,0.29045383,600.26,598.5,0.30661675]
[1745535865659,1.27273016,600.27,598.5,0.30661675]
[1745535865958,1.27273016,600.24,598.5,0.30661675]
[1745535867061,0.29045747,600.23,598.5,0.30661675]
[1745535868863,1.27273016,600.2,598.5,0.30661675]
[1745535869961,0.29045989,600.19,598.5,0.30661675]
[1745535871666,1.27273016,600.2,598.5,0.30661675]
[1745535872966,0.29045989,600.19,598.51,0.30661615]
[1745535873161,0.29045989,600.19,598.5,0.30661615]
[1745535873465,0.29045989,600.19,598.51,0.30661615]
[1745535873667,0.29045989,600.19,598.52,0.30661615]
[1745535873860,0.29045989,600.19,598.53,0.30661615]
[1745535874062,0.29045989,600.19,598.54,0.30661615]
[1745535874268,0.29045989,600.19,598.55,0.30661615]
[1745535874465,0.29045989,600.19,598.56,0.30661382]
[1745535874766,0.29045989,600.19,598.57,0.30661382]
[1745535874965,0.29045989,600.19,598.5,0.30661382]
[1745535875163,0.29045989,600.19,598.51,0.30661382]
[1745535875366,0.29045989,600.19,598.52,0.30661382]
[1745535875568,0.29045989,600.19,598.49,1.05922751]
[1745535875867,1.27273016,599.95,598.6,1.05922751]
[1745535876266,1.27273016,599.95,598.61,0.30661487]
[1745535877567,1.27273016,599.95,598.6,1.05922751]
[1745535877768,1.27273016,599.95,598.61,0.3066147]
[1745535877964,1.27273016,600.06,598.61,0.3066147]
[1745535878169,1.27273016,600.06,598.62,0.3066147]
[1745535878468,1.27273016,600.06,598.63,0.3066147]
[1745535878669,1.27273016,600.06,598.56,0.3066147]
[1745535878869,1.27273016,600.06,598.57,0.3066147]
[1745535879069,0.29046959,600.05,598.56,0.3066147]
[1745535879266,0.29046959,600.05,598.57,0.3066147]
[1745535879571,0.29046959,600.05,598.58,0.3066147]
[1745535879771,1.27273016,599.95,598.6,1.05922751]
[1745535879971,1.27273016,599.95,598.61,0.3066147]
[1745535884677,1.27273016,599.95,598.6,1.05922751]
[1745535885177,0.29046959,600.05,598.49,1.05922751]
[1745535885477,0.29046959,600.05,598.5,0.30662142]
[1745535886673,0.29046959,600.05,598.49,1.05922751]
[1745535886878,1.27273016,600.15,598.5,0.30661856]
[1745535887273,1.27273016,599.94,598.5,0.30661856]
[1745535887473,1.27273016,599.94,598.6,1.05922751]
[1745535887777,1.27273016,599.94,598.61,0.30661856]
[1745535889780,1.27273016,599.94,598.6,1.05922751]
[1745535889977,1.27273016,599.94,598.61,0.30662107]
[1745535891281,1.27273016,599.94,598.6,1.05922751]
[1745535891482,1.27273016,599.94,598.61,0.30662135]
[1745535893082,1.27273016,599.93,598.62,0.30662242]
[1745535893282,1.27273016,599.93,598.61,0.30662242]
[1745535893582,1.27273016,599.93,598.62,0.30662242]
[1745535893782,1.27273016,599.93,598.61,0.30662242]
[1745535894083,1.27273016,599.93,598.62,0.30662242]
[1745535894284,1.27273016,599.93,598.63,0.30662242]
[1745535894483,1.27273016,599.93,598.64,0.30662145]
[1745535894681,1.27273016,599.93,598.65,0.30662145]
[1745535894878,1.27273016,599.93,598.66,0.30662145]
[1745535895080,1.27273016,599.93,598.67,0.30662145]
[1745535895282,1.27273016,599.93,598.61,0.30662145]
[1745535895482,1.27273016,599.93,598.62,0.30661829]
[1745535895683,1.27273016,599.93,598.61,0.30661829]
[1745535895881,1.27273016,599.93,598.62,0.30661829]
[1745535896082,1.27273016,599.96,598.61,0.30661829]
[1745535896278,1.27273016,599.96,598.62,0.30661829]
[1745535896483,1.27273016,599.96,598.63,0.30661829]
[1745535896682,1.27273016,599.96,598.64,0.30661829]
[1745535896986,1.27273016,599.96,598.58,1.05922751]
[1745535899087,0.29047808,599.98,598.42,1.05922751]
[1745535899285,0.29047808,599.98,598.43,0.30661957]
[1745535900591,0.29047808,599.98,598.42,1.05922751]
[1745535900790,0.29047808,599.98,598.43,0.30661989]
[1745535901391,0.29047808,599.98,598.42,1.05922751]
[1745535901691,1.27273016,600.3,598.42,1.05922751]
[1745535902991,0.2904805,600.29,598.42,1.05922751]
[1745535904193,0.2904805,600.29,598.33,0.29048172]
[1745535904687,0.2904805,600.29,598.06,1.082]
[1745535904889,1.27273016,600.94,598.07,0.30665493]
[1745535905994,0.29042232,600.93,598.08,0.29042232]
[1745535906194,0.29042232,600.93,598.09,0.30665493]
[1745535906396,0.29042232,600.93,598.1,0.30661804]
[1745535906593,0.29042232,600.93,598.09,0.30661804]
[1745535906794,0.29042232,600.93,598.1,0.30661804]
[1745535906991,0.29042232,600.93,598.11,0.30661804]
[1745535907190,0.29042232,600.93,598.09,0.30661804]
[1745535907490,0.29042232,600.93,598.1,0.30661804]
[1745535907694,1.27273016,600.99,598.09,0.30661804]
[1745535907894,1.27273016,600.99,598.11,0.30661804]
[1745535908093,0.29041384,600.92,598.12,0.30661804]
[1745535908295,0.29041384,600.92,598.1,0.30661804]
[1745535908493,0.29041384,600.92,598.11,0.30661804]
[1745535908694,0.29041384,600.92,598.1,0.30661804]
[1745535908895,0.29041384,600.92,598.11,0.30661804]
[1745535909197,0.29041384,600.92,598.12,0.30661804]
[1745535909395,0.29041384,600.92,598.1,0.30661804]
[1745535909692,0.29041384,600.92,598.36,1.05922751]
[1745535909693,1.27273016,600.39,598.36,1.05922751]
[1745535909896,1.27273016,600.39,598.37,0.30661804]
[1745535910897,1.27273016,600.39,598.36,1.05922751]
[1745535911096,0.29045262,600.38,598.37,0.30661644]
[1745535912294,1.27273016,600.31,598.37,0.30661644]
[1745535912497,1.27273016,600.31,598.39,1.05922751]
[1745535912698,1.27273016,600.31,598.4,0.30661644]